Cogmind - Beta 10 @@@ ROGUE MODE // 2020.09.19 @ 17:57:16 Player: Finestep Result: Self-destructed Performance ------------- Evolutions (7) 3500 Regions Visited (24) 4800 Robots Destroyed (390) 1950 Value Destroyed (15887) 15887 Prototype IDs (49) 980 Alien Tech Used (1) 200 Bonus (10834) 10834 TOTAL SCORE: 38151 Bonus ------- Triggered High Security 500 High Alert Combat Kills 2288 Follower Combat Kills 4636 Entered Garrisons 400 Used RIF Installer 1000 Met Imprinter 300 Built Enhanced Grunts 300 Met R17 at Cetus 500 Met R17 at Research 2000 Friendly Fire -1090 Cogmind --------- Core Integrity 772/1300 Matter 297/300 Energy 99/100 System Corruption 26% Temperature Cool (0) Movement Core (950) Ox18 Location -3/Quarantine Parts ------- > --- POWER (2) -------- (None) > --- PROPULSION (4) --- (None) > --- UTILITY (14) ----- Advanced Cooling System Large Storage Unit High-capacity Storage Unit Experimental Signal Interpreter Experimental Target Analyzer Quantum Capacitor Advanced Hacking Suite Improved System Shield Relay Coupler [NC] (15) > --- WEAPON (2) ------- CR-A16's Behemoth Slayer > --- INVENTORY (18) --- Long-range Terrain Scanner Relay Coupler [Swarmer] (35) Relay Coupler [Sentry] (15) Subatomic Replicator Matter Drive Compact HERF Cannon Compact HERF Cannon Matter Neutralizer Compact Linear Accelerator Mini Smartbomb Launcher Micro-nuke Launcher Sigix Terminator Sigix Broadsword Peak State ------------ > --- POWER ------------ Particle Reactor Light Particle Reactor > --- PROPULSION ------- Improved Heavy Siege Treads Centrium Heavy Treads > --- UTILITY ---------- Large Storage Unit High-capacity Storage Unit Experimental Signal Interpreter Experimental Target Analyzer Advanced Core Analyzer Quantum Capacitor Centrium Heavy Armor Plating Advanced Force Field Advanced Hacking Suite Advanced Hacking Suite Improved System Shield Relay Coupler [NC] > --- WEAPON ----------- Compact Linear Accelerator CR-A16's Behemoth Slayer > --- INVENTORY -------- Particle Reactor Improved Heavy Siege Treads Advanced Cooling System Long-range Terrain Scanner Advanced Force Field Relay Coupler [Sentry] Subatomic Replicator Matter Drive Compact HERF Cannon Compact HERF Cannon Matter Neutralizer Mini Smartbomb Launcher Micro-nuke Launcher Advanced Remote Datajack Sigix Broadsword [Rating: 168] Favorites ----------- Power Improved Ion Engine Engine Improved Ion Engine Power Core Light Neutrino Core Reactor Antimatter Reactor Propulsion Armored Treads Treads Armored Treads Leg Aluminum Leg Wheel Armored Huge Wheel Hover Unit Aerolev Unit Flight Unit Improved Flight Unit Utility Large Storage Unit Device Sensor Drone Bay Storage Large Storage Unit Processor Experimental Targeting Computer Hackware Relay Coupler [Programmer] Protection Improved Light Armor Plating Weapon CR-A16's Behemoth Slayer Energy Gun Precision Beam Rifle Energy Cannon EM Pulse Cannon Ballistic Gun Autogun Ballistic Cannon Compact Linear Accelerator Launcher Heavy Missile Launcher Special Weapon Improved Remote Datajack Slashing Weapon Axe Piercing Weapon CR-A16's Behemoth Slayer Special Melee Weapon Improved Datajack Build | -11 -10 -10 -9 -9 -8 -8 -7 -7 -7 -7 -6 -6 -6 -6 -6 -6 -5 -5 -5 -4 -4 -4 -3 -3 ------- Run | Scr Mat Min Mat Min Mat Sto Fac Low Low Zio Pro Fac Gar Ext Cet Arc Fac Gar Fac Fac Was Fac Res Qua Slots Evolved 14 | . . . 2 . 2 . 2 . . . . 2 . . . . 2 . . 2 . . 2 . Power . | . . . . . . . . . . . . . . . . . . . . . . . . . Propulsion 2 | . . . 1 . . . . . . . . . . . . . . . . . . . 1 . Utility 12 | . . . 1 . 2 . 2 . . . . 2 . . . . 2 . . 2 . . 1 . Weapon . | . . . . . . . . . . . . . . . . . . . . . . . . . Parts Attached 608 | 6 16 4 34 7 38 35 38 18 8 . 18 37 39 32 11 1 29 19 67 27 8 16 39 61 Power 43 | 1 1 . 2 . 5 1 3 . . . 2 1 4 4 1 . 3 2 2 1 1 . 4 5 Engine 21 | 1 1 . 2 . 5 1 3 . . . 1 1 2 2 . . . . . 1 . . 1 . Core 10 | . . . . . . . . . . . 1 . 2 2 . . 1 1 1 . 1 . . 1 Reactor 12 | . . . . . . . . . . . . . . . 1 . 2 1 1 . . . 3 4 Propulsion 72 | 2 2 . 14 3 8 9 3 . . . 1 3 3 7 2 . 2 . 2 . . 5 3 3 Treads 60 | 2 2 . 13 2 5 6 2 . . . 1 2 3 5 2 . 2 . 2 . . 5 3 3 Leg 2 | . . . . . 2 . . . . . . . . . . . . . . . . . . . Wheel 7 | . . . 1 1 1 . 1 . . . . 1 . 2 . . . . . . . . . . Hover 1 | . . . . . . 1 . . . . . . . . . . . . . . . . . . Flight 2 | . . . . . . 2 . . . . . . . . . . . . . . . . . . Utility 228 | 1 3 . 4 . 6 11 21 11 4 . 5 19 11 2 3 . 12 6 36 12 3 8 21 29 Device 98 | . . . 2 . 1 5 6 4 2 . 3 9 2 . 1 . 3 2 14 6 2 3 12 21 Storage 21 | 1 3 . 1 . 2 1 1 1 . . . 1 1 . . . 2 . 4 . . . 2 1 Processor 16 | . . . . . . 1 1 1 1 . . 1 2 . 1 . . . . 1 . 3 1 3 Hackware 29 | . . . . . . . 1 . . . . . 1 1 . . 4 2 11 3 . 2 1 3 Protection 64 | . . . 1 . 3 4 12 5 1 . 2 8 5 1 1 . 3 2 7 2 1 . 5 1 Artifact . | . . . . . . . . . . . . . . . . . . . . . . . . . Weapon 265 | 2 10 4 14 4 19 14 11 7 4 . 10 14 21 19 5 1 12 11 27 14 4 3 11 24 Energy Gun 20 | 1 1 . . . . 3 1 . . . . . . . . . . . 8 5 1 . . . Energy Cannon 41 | . . . . . . . 2 4 1 . 6 4 5 2 1 . . 1 4 1 . . 1 9 Ballistic Gun 89 | 1 6 4 10 3 13 6 6 2 2 . . 4 10 5 3 . 3 5 1 . 1 . 4 . Ballistic Cannon 11 | . . . . . . . . . . . . . . 3 . . 1 . . . . . 2 5 Launcher 29 | . . . 3 1 2 2 . 1 . . 4 2 2 1 . . . 2 4 1 . . 1 3 Special Weapon 35 | . 3 . . . . . . . . . . . 2 2 . . 6 3 8 5 . . . 6 Impact Weapon . | . . . . . . . . . . . . . . . . . . . . . . . . . Slashing Weapon 11 | . . . 1 . 4 2 2 . 1 . . . . 1 . . . . . . . . . . Piercing Weapon 27 | . . . . . . . . . . . . 4 2 5 1 1 2 . 2 2 2 2 3 1 Special Melee Weapon 2 | . . . . . . 1 . . . . . . . . . . . . . . . 1 . . Unidentified Prototypes 25 | . . . 2 . 1 5 1 . . . 1 2 . . 3 . . 1 1 . . . 5 3 Parts Lost 66 | . 2 . 2 5 7 . 2 . . . 1 1 11 8 . . . 1 5 2 4 1 2 12 Power 14 | . . . 1 . 1 . . . . . 1 . 5 1 . . . . . . 2 . . 3 Propulsion 18 | . . . . 3 2 . . . . . . 1 2 4 . . . . 2 . . 1 1 2 Utility 13 | . . . . . 1 . . . . . . . 2 . . . . 1 1 . 1 . 1 6 Weapon 21 | . 2 . 1 2 3 . 2 . . . . . 2 3 . . . . 2 2 1 . . 1 Highest Loss Streak 10 | . 1 . 1 4 5 . 1 . . . 1 1 4 7 . . . 1 2 1 4 1 1 10 Average Slot Usage (%) 92 | . 99 100 98 99 99 99 96 92 90 92 90 92 89 96 94 93 93 94 93 94 67 26 69 84 Engine 5 | . 14 14 10 11 9 9 6 7 7 7 6 6 4 9 . . . . . 4 3 . 1 . Core 2 | . . . . . . . . . . . 5 6 2 . 11 6 3 6 5 5 3 . . . Reactor 1 | . . . . . . . . . . . . . . . . 6 6 3 5 . . . 4 8 Treads 15 | . 27 28 31 30 18 26 15 7 7 7 6 6 9 14 13 12 11 11 11 10 6 6 14 10 Wheel 2 | . . . . 1 5 . 3 7 7 7 7 5 4 3 . . . . . . . . . . Device 4 | . . . . . 6 6 6 6 5 7 6 11 1 . . . 4 . 3 7 4 1 10 12 Storage 27 | . 27 28 32 33 29 36 30 33 38 38 35 31 31 31 31 31 27 27 27 25 16 . 1 9 Processor 8 | . . . . . . . 6 7 7 7 7 12 12 12 14 18 16 16 9 9 7 6 12 11 Hackware 5 | . . . . . . . . . . . . . 2 8 6 6 10 11 16 19 17 7 12 15 Protection 3 | . . . . . 8 2 7 4 1 . . . 7 3 2 . . 4 2 2 . . 5 6 Energy Gun 1 | . 9 . . . . 5 3 . . . . . . . . . . . 1 6 . . . . Energy Cannon 2 | . . . . . . . 3 12 10 7 12 5 1 2 4 . . 1 1 . . . 1 1 Ballistic Gun 7 | . 17 28 21 21 17 11 7 1 2 7 1 3 9 1 5 6 6 3 2 . . . . . Piercing Weapon 1 | . . . . . . . . . . . . 2 . 2 1 5 2 . . . 4 5 3 3 Naked Turns 3 | . . . . . . . . . . . . . . . . . . . . . 3 . . . Heaviest Build 204 | 13 74 75 93 93 117 123 145 155 152 146 163 177 170 167 156 148 164 153 204 199 181 6 118 139 Greatest Support 155 | 40 40 40 60 60 60 60 68 28 28 28 28 28 60 80 110 110 110 110 110 107 107 60 135 155 Greatest Overweight (x) 11 | 3 1 1 5 9 11 3 5 5 5 5 5 6 6 9 1 1 1 1 1 1 1 1 3 1 Average Overweight (x) 2 | . . 1 1 2 7 1 3 4 4 5 4 5 3 2 1 1 1 1 1 1 . . . . Largest Inventory Capacity 42 | 6 20 20 26 26 32 32 32 38 38 38 38 38 38 38 38 38 38 38 42 42 42 4 14 18 Average Capacity 31 | 5 18 20 25 26 27 32 32 34 38 38 38 38 38 38 38 38 38 38 39 42 28 4 5 15 Most Carried 42 | 3 20 20 26 26 32 32 32 38 38 38 38 38 38 38 38 38 38 38 38 42 42 4 14 18 Average Carried 29 | 1 13 19 25 23 27 31 31 34 37 36 37 37 37 37 37 37 37 37 35 34 28 3 5 15 Final Capacity 42 | 6 20 20 26 26 32 32 32 38 38 38 38 38 38 38 38 38 38 38 42 42 4 4 14 18 Final Carried 42 | 3 20 20 26 22 32 32 32 38 37 38 38 38 38 38 38 37 38 38 37 42 4 4 14 16 Class Distribution -------------------- 52% | Hauler-Mutant 32% | Bothacker-Mutant 5% | Hacker-Assassin 5% | Hacker-Mutant Dominant Class ---------------- Hauler-Mutant | -10/Materials Hauler-Mutant | -10/Mines Hauler-Mutant | -9/Materials Hauler-Mutant | -9/Mines Hauler-Mutant | -8/Materials Hauler-Mutant | -8/Storage Hauler-Mutant | -7/Factory Hauler-Mutant | -7/Lower Caves Hauler-Mutant | -7/Lower Caves Hauler-Mutant | -7/Zion Hauler-Mutant | -6/Proximity Caves Hauler-Mutant | -6/Factory Bothacker-Mutant | -6/Garrison Bothacker-Mutant | -6/Extension Bothacker-Mutant | -6/Cetus Bothacker-Mutant | -6/Archives Bothacker-Mutant | -5/Factory Bothacker-Mutant | -5/Garrison Bothacker-Mutant | -5/Factory Bothacker-Mutant | -4/Factory Bothacker-Mutant | -4/Waste Hacker-Mutant | -4/Factory Hacker-Assassin | -3/Research Hacker-Mutant | -3/Quarantine Resources | -11 -10 -10 -9 -9 -8 -8 -7 -7 -7 -7 -6 -6 -6 -6 -6 -6 -5 -5 -5 -4 -4 -4 -3 -3 ----------- Run | Scr Mat Min Mat Min Mat Sto Fac Low Low Zio Pro Fac Gar Ext Cet Arc Fac Gar Fac Fac Was Fac Res Qua Matter Collected 13024 | 240 357 344 1165 211 978 935 524 208 70 10 353 622 1078 513 200 42 470 506 1689 464 . 73 589 1383 Remotely . | . . . . . . . . . . . . . . . . . . . . . . . . . Salvage Created 17138 | 103 503 278 1754 115 1308 1507 973 347 51 . 293 804 1447 795 223 359 276 367 1429 455 301 69 656 2725 Parts 834 | 5 37 26 129 6 79 73 43 12 3 . 13 29 44 37 12 23 11 23 55 23 3 8 12 128 Haulers Intercepted 25 | . . . 6 . 3 6 1 . . . . 3 . . . . . . 1 . . . 4 1 Recyclers Shooed 18 | . 3 . . . 2 4 . . . . . 5 . 2 . . 1 . 1 . . . . . Parts Field Recycled . | . . . . . . . . . . . . . . . . . . . . . . . . . Retrieved Matter . | . . . . . . . . . . . . . . . . . . . . . . . . . Parts Self-Destructed 33 | . . . . . . . . 10 5 2 16 . . . . . . . . . . . . . Prevented 11 | . . . . . . . . 5 . . 6 . . . . . . . . . . . . . Kills | -11 -10 -10 -9 -9 -8 -8 -7 -7 -7 -7 -6 -6 -6 -6 -6 -6 -5 -5 -5 -4 -4 -4 -3 -3 ------- Run | Scr Mat Min Mat Min Mat Sto Fac Low Low Zio Pro Fac Gar Ext Cet Arc Fac Gar Fac Fac Was Fac Res Qua Combat Hostiles Destroyed 280 | . 10 11 33 8 24 21 12 6 1 . 13 6 24 11 4 1 3 12 27 11 1 . 2 39 Melee 24 | . . . . . . . . . 1 . . 1 1 3 . . 1 1 1 2 1 . . 12 Guns 140 | . 10 11 24 4 16 14 7 . . . . 2 18 1 3 1 2 6 15 6 . . . . Cannons 28 | . . . . . . . 2 1 . . 1 2 . 2 1 . . . 2 . . . 2 15 AOE 72 | . . . 9 4 8 7 . 3 . . 11 . 5 4 . . . 5 7 3 . . . 6 Classes Destroyed 24 | 2 5 . 3 2 . . 2 1 1 . 2 . . 1 . . . . 1 . 1 . . 3 Worker 20 | . 2 2 5 . 1 1 2 . . . . 1 . . . . 1 . 1 1 . 2 . 1 Builder 6 | . . . 1 . 2 . . . . . . . . 1 . . . . 2 . . . . . Tunneler 4 | 2 1 . . . . . . . . . . . . . . . . . . . . 1 . . Hauler 25 | . . . 6 . 3 6 1 . . . . 3 . . . . . . 1 . . . 4 1 Recycler 19 | 1 1 1 2 . 3 5 2 . . . . . . 2 . . 1 . . . . . 1 . Minesweeper 1 | . . . . . . . . 1 . . . . . . . . . . . . . . . . Mechanic 1 | . . . . . . . . . . . . . . . . . . . . . . . . 1 Operator 18 | . 1 . 1 . 1 4 . . . . . . . . . 8 . . . . . . . 3 Drone 2 | . . . . . . . . . . . 1 . . . . . . . . 1 . . . . Watcher 12 | . 1 . 3 . 1 . 3 . . . . 1 . . . . . . . . . . . 3 Swarmer 83 | . 3 9 12 . 10 4 . 3 . . 8 . 7 3 . . 2 8 7 7 . . . . Saboteur 1 | . . . . . . . . . . . . . . . . . . . . . . . . 1 Grunt 111 | . 7 2 11 2 9 12 . 1 . . 4 1 12 4 2 . 1 4 17 3 . . 2 17 Brawler 3 | . . . . . . . . . . . . . . . . . . . 1 . . . . 2 Duelist 4 | . . . . . . . . . . . . . . . . . . . 1 . . . . 3 Sentry 32 | . . . 10 . 5 5 3 . . . . 2 3 2 . 1 . . 1 . . . . . Demolisher 2 | . . . . 1 . . 1 . . . . . . . . . . . . . . . . . Hunter 12 | . . . . . . . 4 2 . . 1 1 2 . . . . . . . . . . 2 Programmer 20 | . . . . . . . 4 . . . . 2 . . . . . . . 1 . . . 13 Behemoth 2 | . . . . . . . . . . . . . . 2 . . . . . . . . . . Compactor 1 | . . . . . . . . . . . . . . . . . . . . . 1 . . . Cetus Guard 2 | . . . . . . . . . . . . . . . 2 . . . . . . . . . Alpha 7 1 | . . . . . . . . . . . . . . . . . . . . . . . . 1 Assembled 5 | . . . . 5 . . . . . . . . . . . . . . . . . . . . Savage 2 | . . . . . . . . . . . 1 1 . . . . . . . . . . . . Mutant 1 | . . . . . . . . . 1 . . . . . . . . . . . . . . . Best Kill Streak 10 | 3 3 4 7 4 5 8 3 3 1 . 4 2 10 6 2 2 2 3 7 4 1 1 1 6 Combat Bots Only 10 | . 3 3 5 4 5 6 2 3 1 . 4 2 10 5 2 1 2 3 5 4 1 . 1 5 Max Kills in Single Turn 5 | 1 1 2 3 2 5 3 2 3 1 . 3 1 3 2 1 1 1 2 4 3 1 1 1 2 Gunslinging 1 | . . 1 . . . . . . . . . . 1 . . . . . . 1 . . . . Exploded 5 | . . . 3 2 5 3 . 3 . . 2 . 3 2 . . . 2 3 3 . . . 1 Melee 1 | . . . . . . . . . 1 . . 1 1 1 . . 1 1 1 1 1 . . 1 Uniques/NPCs Destroyed . | . . . . . . . . . . . . . . . . . . . . . . . . . Combat | -11 -10 -10 -9 -9 -8 -8 -7 -7 -7 -7 -6 -6 -6 -6 -6 -6 -5 -5 -5 -4 -4 -4 -3 -3 -------- Run | Scr Mat Min Mat Min Mat Sto Fac Low Low Zio Pro Fac Gar Ext Cet Arc Fac Gar Fac Fac Was Fac Res Qua Damage Taken 22256 | . 515 430 1107 690 1151 785 953 176 177 . 626 756 2370 1724 128 44 356 842 2049 390 625 915 261 5186 Core 2720 | . 23 76 192 57 87 95 71 14 55 . 129 104 218 240 . 19 38 59 195 87 262 171 . 528 Absorbed by Shields 965 | . . . . . . . . . . . . . . 118 78 . . . 9 10 . . 61 689 Reduced by Siege Mode 61 | . . . . . . . . . . . . . . . . . . . . . . . . 61 Core Remaining (%) 59 | 100 . 60 . 37 . 66 . . . . 61 . . . . 31 . . 70 . . 54 . . Volleys Fired 1198 | 3 68 34 114 21 95 97 60 15 . . 21 54 84 43 14 5 40 45 160 48 11 . 30 136 Largest 2 | 2 2 2 2 2 2 2 2 2 . . 2 2 2 2 2 2 2 1 2 2 2 . 2 1 Hottest 196 | 70 100 48 46 46 48 86 126 126 . . 153 180 180 151 196 63 63 98 98 98 59 . 128 105 Shots Fired 1853 | 6 123 68 223 39 179 189 105 24 . . 23 81 148 62 28 8 53 45 189 66 16 . 44 134 Gun 1290 | 6 116 68 218 36 175 184 70 . . . . 30 119 31 12 8 31 32 91 38 11 . 14 . Cannon 348 | . . . . . . . 35 22 . . 11 49 24 17 16 . 5 2 15 2 . . 30 120 Launcher 61 | . . . 5 3 4 5 . 2 . . 12 2 3 3 . . . 4 8 1 . . . 9 Special 154 | . 7 . . . . . . . . . . . 2 11 . . 17 7 75 25 5 . . 5 Kinetic 1144 | 3 79 68 218 36 175 141 47 . . . . 30 119 40 12 8 36 32 32 . 6 . 14 48 Thermal 372 | 3 44 . . . . 43 23 . . . 5 40 24 8 16 . . 2 74 40 5 . 30 15 Explosive 61 | . . . 5 3 4 5 . 2 . . 12 2 3 3 . . . 4 8 1 . . . 9 Electromagnetic 129 | . . . . . . . 35 22 . . 6 9 . . . . . . . . . . . 57 Robot Hit Streak 49 | 3 12 14 16 5 11 49 15 11 . . 6 13 24 22 23 24 25 21 29 35 27 . 20 12 Robot Miss Streak 7 | . 3 4 7 3 5 2 2 2 . . 1 2 4 2 1 1 1 1 4 4 . . 1 4 Penetration Max 1 | . . . . . . . . . . . . . . 1 1 . 1 1 1 . . . . . Secondary Targets 12 | . . 1 1 1 1 . . . . . . . 2 1 . . 2 . 1 2 . . . . Max Gunslinging Chain 1 | . . 1 1 1 1 . . . . . . . 1 1 . . 1 . 1 1 . . . . Capacitor 57 | . . . . . . . . . . . . . . . . . . . . . . . . 57 Shots Hit Robots 1409 | 3 69 46 144 23 117 146 83 18 7 . 9 52 115 61 26 21 54 31 148 55 23 3 38 117 Core Hits 721 | 3 26 17 74 17 59 70 33 10 2 . 26 22 115 30 10 10 10 19 49 17 4 3 12 83 Critical Hits 46 | . 1 . 2 . 1 2 1 . . . . 1 3 2 2 3 3 6 4 1 1 . 2 11 Critical Kills 19 | . . . 1 . . 1 . . . . . . 2 . 2 1 1 4 . 1 1 . 1 4 Critical Parts Destroyed 26 | . 1 . 1 . 1 1 1 . . . . 1 1 2 . 2 2 2 3 . . . 1 7 Melee Attacks 241 | . . . 1 . 5 7 2 . 10 . . 16 17 55 2 18 9 3 9 2 7 6 7 65 Impact . | . . . . . . . . . . . . . . . . . . . . . . . . . Slashing 45 | . . . 1 . 5 7 2 . 10 . . . . 20 . . . . . . . . . . Piercing 196 | . . . . . . . . . . . . 16 17 35 2 18 9 3 9 2 7 6 7 65 Sneak Attacks 36 | . . . . . . . . . . . . 2 . 2 . 9 3 . 5 2 2 3 3 5 Combat Hostiles 9 | . . . . . . . . . . . . . . 1 . . . . 2 2 2 . . 2 Follow-up Attacks . | . . . . . . . . . . . . . . . . . . . . . . . . . Damage Inflicted 44051 | 41 862 646 2818 631 2484 3046 1838 739 325 . 1678 1468 3613 2014 784 2020 1455 1489 4230 1261 556 500 1596 7957 Guns 16963 | 41 862 628 2212 371 1669 2460 923 . . . . 420 1898 576 301 133 699 643 1855 711 272 . 289 . Cannons 8252 | . . . . . . . 867 447 . . 123 694 336 458 483 . 159 67 275 . . . 784 3559 Explosions 8838 | . . . 605 260 798 586 . 292 . . 1555 . 584 452 . . . 641 1076 233 . . . 1756 Melee 9885 | . . . . . . . . . 325 . . 354 795 528 . 1887 597 126 1007 317 284 500 523 2642 Ramming 113 | . . 18 1 . 17 . 48 . . . . . . . . . . 12 17 . . . . . Kinetic 15516 | 41 663 628 2212 371 1669 1750 544 . . . . 420 1898 859 301 133 858 643 526 . 151 . 289 1560 Thermal 6267 | . 199 . . . 70 710 379 108 . . . 520 336 175 483 . . 67 1604 711 121 . 784 . Explosive 8660 | . . . 605 260 728 586 . 184 . . 1555 . 584 452 . . . 641 1076 233 . . . 1756 Electromagnetic 3610 | . . . . . . . 867 447 . . 123 174 . . . . . . . . . . . 1999 Impact . | . . . . . . . . . . . . . . . . . . . . . . . . . Slashing 325 | . . . . . . . . . 325 . . . . . . . . . . . . . . . Piercing 9560 | . . . . . . . . . . . . 354 795 528 . 1887 597 126 1007 317 284 500 523 2642 Highest Corruption 26 | . 2 2 . . . . 2 2 2 2 . 2 2 2 2 2 . 1 3 4 19 19 2 26 Average Corruption 3 | . 1 2 . . . . 1 2 2 2 . 1 2 2 2 2 . 1 1 2 14 19 1 11 Corruption Purged 2 | . . . . . . . . . . . . . . . . . . . . . . . 2 . Effects 317 | . 15 10 . . . . 16 16 4 2 . 3 19 19 3 13 . 4 28 9 17 30 3 106 Message Errors 88 | . 6 2 . . . . 7 7 1 1 . 1 7 8 1 5 . 2 7 2 3 7 . 21 Matter Fused 36 | . . . . . . . . . . . . . . . . . . . 3 2 3 6 . 22 Heat Flow Errors 41 | . 3 3 . . . . 1 2 1 1 . 1 6 3 1 2 . . 2 2 3 3 . 7 Energy Discharges 44 | . 5 2 . . . . 5 2 2 . . 1 1 3 . 3 . 1 4 2 1 1 2 9 Parts Rejected 1 | . . . . . . . . . . . . . . . . . . . . . . 1 . . Data Loss (minor) 36 | . 1 2 . . . . 3 3 . . . . 3 2 1 3 . 1 7 . . 2 . 8 Data Loss (major) 7 | . . . . . . . . . . . . . . . . . . . . . . . . 7 Misfires 2 | . . . . . . . . . . . . . . . . . . . . . . . . 2 Alerts 2 | . . . . . . . . . . . . . . . . . . . . . . . . 2 Misdirections 23 | . . . . . . . . . . . . . . . . . . . . . 2 10 . 11 Targeting Errors 32 | . . 1 . . . . . 2 . . . . 2 2 . . . . 5 1 5 . 1 13 Weapon Failures 5 | . . . . . . . . . . . . . . 1 . . . . . . . . . 4 Overload Shots . | . . . . . . . . . . . . . . . . . . . . . . . . . Overflow Damage 1951 | . . . . . 123 16 73 14 . . 142 63 54 9 . 518 163 25 415 . . . 110 226 Projectiles 297 | . . . . . . . 70 14 . . . 23 . 8 . . . . . . . . 9 173 Explosions 519 | . . . . . 123 16 . . . . 142 . 54 1 . . . 13 118 . . . . 52 Melee 1135 | . . . . . . . 3 . . . . 40 . . . 518 163 12 297 . . . 101 1 Knockbacks 18 | . . . . . . . . . . . . . . 2 . . . . . . . . . 16 Impact . | . . . . . . . . . . . . . . . . . . . . . . . . . Kinetic 17 | . . . . . . . . . . . . . . 2 . . . . . . . . . 15 Secondary 1 | . . . . . . . . . . . . . . . . . . . . . . . . 1 Self-Inflicted Damage 440 | . . . . 85 61 69 22 49 . . 75 . . . . . . 5 12 . . . . 62 Shots 15 | . . . . 3 1 2 . 2 . . 3 . . . . . . 1 1 . . . . 2 Rammed 9 | . . 1 1 . 3 . 3 . . . . . . . . . . . 1 . . . . . Targets Rammed 11 | . . 2 1 . 3 . 3 . . . . . . . . . . 1 1 . . . . . Kicked . | . . . . . . . . . . . . . . . . . . . . . . . . . Crushed 2 | . . 1 . . . . . . . . . . . . . . . 1 . . . . . . Highest Temperature 423 | 18 217 169 8 24 67 188 300 234 201 104 226 361 423 264 168 270 58 108 274 254 206 146 337 182 Average Temperature 62 | 9 40 23 3 3 8 43 64 76 101 54 72 82 96 91 74 99 23 25 73 64 73 66 115 48 Received Heat Transfer 3894 | . 246 72 405 58 531 297 90 18 . . 57 126 594 284 16 9 36 246 391 6 . 84 16 312 Effects 14 | . . . . . . . 1 . . . . 1 6 . . . . . . . 3 . 3 . Shutdowns 2 | . . . . . . . . . . . . . 2 . . . . . . . . . . . Energy Bleed 1 | . . . . . . . . . . . . . 1 . . . . . . . . . . . Interference 8 | . . . . . . . . . . . . . 2 . . . . . . . 3 . 3 . Matter Decay 1 | . . . . . . . 1 . . . . . . . . . . . . . . . . . Short Circuit 2 | . . . . . . . . . . . . 1 1 . . . . . . . . . . . Siege Activations 1 | . . . . . . . . . . . . . . . . . . . . . . . . 1 Total Turns 42 | . . . . . . . . . . . . . . . . . . . . . . . . 42 Longest Duration 42 | . . . . . . . . . . . . . . . . . . . . . . . . 42 Robots Corrupted 14 | . . . . . . . 3 3 . . 1 . . . . . . . . . . . . 7 Combat Hostiles 12 | . . . . . . . 3 2 . . 1 . . . . . . . . . . . . 6 Parts Fried 43 | . . . . . . . 7 3 . . 1 1 . . . . . . . . . . . 31 Impact Corruptions 1 | . . . . . . . 1 . . . . . . . . . . . . . . . . . Robots Melted 3 | . . . . . . . . . . . . 1 . . . . . . 2 . . . . . Combat Hostiles 3 | . . . . . . . . . . . . 1 . . . . . . 2 . . . . . Parts Melted 18 | . 1 . . . . 1 7 . . . . . . . . . . . 4 5 . . . . Heat Transferred 10174 | . 521 . . . 50 1517 777 100 . . . 750 500 185 518 . . 74 2659 1450 250 . 823 . Parts Sabotaged . | . . . . . . . . . . . . . . . . . . . . . . . . . Parts Stolen . | . . . . . . . . . . . . . . . . . . . . . . . . . Parts Stripped . | . . . . . . . . . . . . . . . . . . . . . . . . . Power Chain Reactions 1 | . . . . . . . . 1 . . . . . . . . . . . . . . . . Missiles Intercepted . | . . . . . . . . . . . . . . . . . . . . . . . . . Alert | -11 -10 -10 -9 -9 -8 -8 -7 -7 -7 -7 -6 -6 -6 -6 -6 -6 -5 -5 -5 -4 -4 -4 -3 -3 ------- Run | Scr Mat Min Mat Min Mat Sto Fac Low Low Zio Pro Fac Gar Ext Cet Arc Fac Gar Fac Fac Was Fac Res Qua Peak Influence 1930 | 15 148 169 608 228 241 583 301 . . . . 215 898 554 844 517 695 1459 1930 1248 406 410 220 826 Initial 1100 | . 9 33 . 204 6 31 214 . . . . 140 60 471 309 257 18 486 765 1100 392 242 215 21 Average 384 | 4 57 63 390 114 68 346 145 . . . . 102 640 274 517 255 328 1211 755 1115 374 325 95 317 Maximum Alert Level 5 | . . . 2 1 1 2 1 . . . . 1 3 2 3 2 2 4 5 4 2 2 1 3 Low Security (%) 43 | 100 100 100 16 67 95 21 77 . . . . 87 7 28 . 48 23 . 25 . . . 64 38 Level 1 20 | . . . 32 32 4 27 22 . . . . 12 4 45 55 28 37 . 8 . 91 89 35 22 Level 2 18 | . . . 51 . . 50 . . . . . . 36 25 18 23 39 7 8 . 8 10 . 33 Level 3 8 | . . . . . . . . . . . . . 52 . 25 . . 13 39 24 . . . 4 Level 4 7 | . . . . . . . . . . . . . . . . . . 79 7 75 . . . . Level 5 . | . . . . . . . . . . . . . . . . . . . 6 . . . . . High Security . | . . . . . . . . . . . . . . . . . . . 4 . . . . . Max Security . | . . . . . . . . . . . . . . . . . . . . . . . . . Squads Dispatched 81 | . 1 . 7 . 2 6 10 . . . . 4 . 5 . . 5 . 24 4 . 1 1 11 Investigation 16 | . . . 2 . . 1 3 . . . . 1 . 3 . . . . 2 1 . 1 1 1 Extermination 17 | . . . . . . . 4 . . . . 2 . . . . 2 . 2 2 . . . 5 Reinforcement 24 | . 1 . 4 . 2 5 . . . . . . . 2 . . 1 . 7 . . . . 2 Assault 15 | . . . 1 . . . . . . . . . . . . . . . 10 1 . . . 3 Garrison 9 | . . . . . . . 3 . . . . 1 . . . . 2 . 3 . . . . . Intercept . | . . . . . . . . . . . . . . . . . . . . . . . . . Construction Impeded 5 | . . . 1 . 1 1 . . . . . . . . . . . . 2 . . . . . Haulers Reinforced 3 | . . . . . . . . . . . . . . . . . 1 . 2 . . . . . Stealth | -11 -10 -10 -9 -9 -8 -8 -7 -7 -7 -7 -6 -6 -6 -6 -6 -6 -5 -5 -5 -4 -4 -4 -3 -3 --------- Run | Scr Mat Min Mat Min Mat Sto Fac Low Low Zio Pro Fac Gar Ext Cet Arc Fac Gar Fac Fac Was Fac Res Qua Distress Signals 36 | . 1 . 6 . 3 5 1 . . . . 2 . 3 2 . 2 . 4 1 . 1 5 . Communications Jammed . | . . . . . . . . . . . . . . . . . . . . . . . . . Distress Signals . | . . . . . . . . . . . . . . . . . . . . . . . . . Times Spotted 591 | . 20 12 51 12 38 43 25 6 1 . 17 16 32 30 14 17 26 29 80 27 5 16 11 63 Peak Tracking Total 8 | . 5 5 6 5 6 4 5 3 1 . 5 5 7 6 5 1 4 7 8 6 4 7 6 6 Tactical Retreats 31 | . . 1 3 2 2 . 1 . . . . 2 6 1 . . 1 2 3 . . 5 . 2 Traps | -11 -10 -10 -9 -9 -8 -8 -7 -7 -7 -7 -6 -6 -6 -6 -6 -6 -5 -5 -5 -4 -4 -4 -3 -3 ------- Run | Scr Mat Min Mat Min Mat Sto Fac Low Low Zio Pro Fac Gar Ext Cet Arc Fac Gar Fac Fac Was Fac Res Qua Traps Triggered 24 | . 2 . 1 . . 1 2 . . . . . 6 1 . . . 6 2 2 . 1 . . Indirectly . | . . . . . . . . . . . . . . . . . . . . . . . . . Trap Hack Attempts 5 | . . . . . . 5 . . . . . . . . . . . . . . . . . . Triggered . | . . . . . . . . . . . . . . . . . . . . . . . . . Disarmed . | . . . . . . . . . . . . . . . . . . . . . . . . . Reprogrammed 19 | . . . . . . 1 . . . . . . . 12 . . . . 6 . . . . . Reused 2 | . . . . . . . . . . . . . . . . . . . 2 . . . . . Traps Extracted . | . . . . . . . . . . . . . . . . . . . . . . . . . Installed . | . . . . . . . . . . . . . . . . . . . . . . . . . Triggered 4 | . . . . . . . . 1 . . 1 . . . . . . . 2 . . . . . Machines | -11 -10 -10 -9 -9 -8 -8 -7 -7 -7 -7 -6 -6 -6 -6 -6 -6 -5 -5 -5 -4 -4 -4 -3 -3 ---------- Run | Scr Mat Min Mat Min Mat Sto Fac Low Low Zio Pro Fac Gar Ext Cet Arc Fac Gar Fac Fac Was Fac Res Qua Machines Disabled 74 | . 1 . 2 1 2 3 . . 1 . . 4 5 3 . 3 6 5 26 1 . . . 11 Max in Single Turn 3 | . 1 . 1 1 1 1 . . 1 . . 1 1 1 . 1 . 1 3 1 . . . 1 Garrison Access 6 | . . . . . . . 1 . . . . . . . . . . . 3 . . . 1 1 Garrison Relay 8 | . . . . . . . . . . . . . 4 . . . . 4 . . . . . . Machines Sabotaged . | . . . . . . . . . . . . . . . . . . . . . . . . . Garrisons Compromised . | . . . . . . . . . . . . . . . . . . . . . . . . . Overloaded Fab Kills . | . . . . . . . . . . . . . . . . . . . . . . . . . Fab Network Shutdowns 1 | . . . . . . . . . . . . . . . . . . . 1 . . . . . Hacking | -11 -10 -10 -9 -9 -8 -8 -7 -7 -7 -7 -6 -6 -6 -6 -6 -6 -5 -5 -5 -4 -4 -4 -3 -3 --------- Run | Scr Mat Min Mat Min Mat Sto Fac Low Low Zio Pro Fac Gar Ext Cet Arc Fac Gar Fac Fac Was Fac Res Qua Machines Accessed 113 | . 8 3 11 . 8 7 16 . 1 . . 8 . 18 . . 3 . 12 2 . 2 2 12 Terminals 82 | . 7 1 8 . 7 6 11 . . . . 5 . 17 . . . . 6 1 . 2 1 10 Fabricators 5 | . . . . . . . 1 . . . . 1 . . . . 1 . 2 . . . . . Repair Stations 8 | . 1 . 2 . . 1 2 . . . . . . . . . . . 1 1 . . . . Recycling Units 2 | . . . . . . . 1 . . . . . . 1 . . . . . . . . . . Scanalyzers 4 | . . . 1 . 1 . . . . . . . . . . . 1 . . . . . . 1 Garrison Access 9 | . . . . . . . 1 . . . . 2 . . . . 1 . 3 . . . 1 1 Total Hacks 328 | . 37 5 36 . 24 24 38 . 1 . . 22 . 51 . . 10 . 30 6 . 6 4 34 Successful 171 | . 18 4 19 . 16 17 20 . 1 . . 6 . 23 . . 6 . 18 2 . 1 1 19 Failed 156 | . 19 1 17 . 7 7 18 . . . . 16 . 28 . . 4 . 12 4 . 5 3 15 Catastrophic 36 | . 2 . 3 . 2 2 4 . . . . 2 . 8 . . 2 . 4 2 . 1 1 3 Database Lockouts 1 | . . . . . 1 . . . . . . . . . . . . . . . . . . . Manual 178 | . 26 3 23 . 13 12 17 . . . . 8 . 29 2 . 3 . 10 4 . 5 1 22 Terminals 253 | . 33 3 28 . 20 21 30 . . . . 15 . 49 . . . . 13 4 . 6 2 29 Fabricators 12 | . . . . . . . 2 . . . . 1 . . . . 2 . 7 . . . . . Repair Stations 19 | . 4 . 5 . . 3 3 . . . . . . . . . . . 2 2 . . . . Recycling Units 3 | . . . . . . . 1 . . . . . . 2 . . . . . . . . . . Scanalyzers 12 | . . . 3 . 4 . . . . . . . . . . . 4 . . . . . . 1 Garrison Access 26 | . . . . . . . 2 . . . . 6 . . . . 4 . 8 . . . 2 4 Terminal Hacks 94 | . 11 4 6 . 9 12 15 . 1 . . 3 . 16 . . . . 5 1 . 1 . 10 Part Schematic 7 | . 2 . . . . . 2 . . . . 2 . 1 . . . . . . . . . . Robot Schematic 4 | . . 2 1 . 1 . . . . . . . . . . . . . . . . . . . Robot Analysis 8 | . 4 . 1 . . . . . . . . . . 2 . . . . 1 . . . . . Prototype ID Bank 7 | . 1 . . . . 1 2 . . . . . . 1 . . . . 1 . . . . 1 Open Door 7 | . . 2 . . . 2 . . 1 . . . . 1 . . . . . . . . . 1 Level Access Points 1 | . . . . . . . . . . . . . . . . . . . . . . . . 1 Branch Access Points 3 | . . . 1 . . . 1 . . . . . . . . . . . . . . 1 . . Terminal Index 3 | . . . . . 1 . 1 . . . . . . . . . . . . . . . . 1 Fabricator Index 2 | . . . . . . . . . . . . . . . . . . . 1 . . . . 1 Repair Station Index 2 | . . . . . . . 1 . . . . . . 1 . . . . . . . . . . Scanalyzer Index 1 | . . . . . . . . . . . . . . . . . . . . . . . . 1 Garrison Index 1 | . . . . . . . . . . . . . . . . . . . 1 . . . . . Alert Level 4 | . . . . . 1 . 2 . . . . . . 1 . . . . . . . . . . Unreport Threat 14 | . . . . . 3 3 2 . . . . . . 2 . . . . . 1 . . . 3 Locate Traps 9 | . 2 . . . . 4 1 . . . . . . 2 . . . . . . . . . . Reprogram Traps 3 | . . . . . . . . . . . . . . 2 . . . . 1 . . . . . Transport Status 2 | . . . . . . . 1 . . . . . . . . . . . . . . . . 1 Recall Reinforcements 3 | . . . . . . 1 . . . . . . . 2 . . . . . . . . . . Hauler Manifests 4 | . 1 . . . . . 1 . . . . 1 . 1 . . . . . . . . . . Registered Components 1 | . . . . . 1 . . . . . . . . . . . . . . . . . . . Zone Layout 8 | . 1 . 3 . 2 1 1 . . . . . . . . . . . . . . . . . Fabricator Hacks 7 | . . . . . . . . . . . . . . . . . 2 . 5 . . . . . Load Schematic 3 | . . . . . . . . . . . . . . . . . 1 . 2 . . . . . Build 4 | . . . . . . . . . . . . . . . . . 1 . 3 . . . . . Repair Station Hacks 10 | . 4 . 4 . . 1 . . . . . . . . . . . . . 1 . . . . Scan Component 6 | . 2 . 2 . . 1 . . . . . . . . . . . . . 1 . . . . Repair 4 | . 2 . 2 . . . . . . . . . . . . . . . . . . . . . Recycling Unit Hacks 2 | . . . . . . . . . . . . . . 2 . . . . . . . . . . Retrieve Components 2 | . . . . . . . . . . . . . . 2 . . . . . . . . . . Scanalyzer 8 | . . . 3 . 4 . . . . . . . . . . . 1 . . . . . . . Insert Component 4 | . . . 1 . 2 . . . . . . . . . . . 1 . . . . . . . Analyze 4 | . . . 2 . 2 . . . . . . . . . . . . . . . . . . . Garrison Access Hacks 7 | . . . . . . . . . . . . 1 . . . . 1 . 3 . . . 1 1 Unlock Access 4 | . . . . . . . . . . . . 1 . . . . 1 . 2 . . . . . Seal Access 2 | . . . . . . . . . . . . . . . . . . . 1 . . . 1 . Coupler Status 1 | . . . . . . . . . . . . . . . . . . . . . . . . 1 Unauthorized Hacks 43 | . 3 . 6 . 3 4 5 . . . . 2 . 5 . . 2 . 5 . . . . 8 Terminals 34 | . 3 . 6 . 3 4 4 . . . . 2 . 5 . . . . 1 . . . . 6 Track 16 | . 2 . 4 . 2 2 . . . . . 1 . 2 . . . . . . . . . 3 Assimilate 2 | . . . . . . . . . . . . . . . . . . . . . . . . 2 Botnet 16 | . 1 . 2 . 1 2 4 . . . . 1 . 3 . . . . 1 . . . . 1 Fabricators . | . . . . . . . . . . . . . . . . . . . . . . . . . Repair Stations 1 | . . . . . . . . . . . . . . . . . . . 1 . . . . . Mechanics 1 | . . . . . . . . . . . . . . . . . . . 1 . . . . . Recycling Units . | . . . . . . . . . . . . . . . . . . . . . . . . . Scanalyzers 1 | . . . . . . . . . . . . . . . . . . . . . . . . 1 Researchers 1 | . . . . . . . . . . . . . . . . . . . . . . . . 1 Garrison Access 7 | . . . . . . . 1 . . . . . . . . . 2 . 3 . . . . 1 Restock 2 | . . . . . . . . . . . . . . . . . 1 . 1 . . . . . Reprogram 2 | . . . . . . . . . . . . . . . . . 1 . 1 . . . . . Jam 1 | . . . . . . . 1 . . . . . . . . . . . . . . . . . Eject 2 | . . . . . . . . . . . . . . . . . . . 1 . . . . 1 Data Cores Recovered 1 | . . . . . . . . . . . . . . . . . . . . . . . . 1 Used 1 | . . . . . . . . . . . . . . . . . . . . . . . . 1 Hacking Detections 109 | . 7 1 11 . 8 7 16 . . . . 8 . 18 1 . 3 . 12 2 . 2 2 11 Full Trace Events 12 | . 1 . 1 . . 1 1 . . . . 1 . 3 . . . . 1 1 . 1 1 . Feedback Events . | . . . . . . . . . . . . . . . . . . . . . . . . . Feedback Blocked . | . . . . . . . . . . . . . . . . . . . . . . . . . Robot Schematics Acquired 4 | . . 2 1 . 1 . . . . . . . . . . . . . . . . . . . Robots Built 2 | . . . . . . . . . . . . . . . . . . . 2 . . . . . Matter 219 | . . . . . . . . . . . . . . . . . . . 219 . . . . . Time 58 | . . . . . . . . . . . . . . . . . . . 58 . . . . . Total Robot Build Rating 6 | . . . . . . . . . . . . . . . . . . . 6 . . . . . Part Schematics Acquired 10 | . 2 . 1 . 2 . 2 . . . . 2 . 1 . . . . . . . . . . Parts Built 3 | . . . . . . . . . . . . . . . . . 1 . 2 . . . . . Matter 306 | . . . . . . . . . . . . . . . . . 102 . 204 . . . . . Time 127 | . . . . . . . . . . . . . . . . . 25 . 102 . . . . . Total Part Build Rating 3 | . . . . . . . . . . . . . . . . . 1 . 2 . . . . . Parts Repaired 4 | . 2 . 2 . . . . . . . . . . . . . . . . . . . . . Time 104 | . 52 . 52 . . . . . . . . . . . . . . . . . . . . . Parts Recycled . | . . . . . . . . . . . . . . . . . . . . . . . . . Recycled Matter . | . . . . . . . . . . . . . . . . . . . . . . . . . Retrieved Matter . | . . . . . . . . . . . . . . . . . . . . . . . . . Retrieved Components 14 | . . . . . . . . . . . . . . 14 . . . . . . . . . . Parts Scanalyzed 4 | . . . 1 . 2 . . . . . . . . . . . 1 . . . . . . . Part Schematics Acquired 3 | . . . 1 . 2 . . . . . . . . . . . . . . . . . . . Parts Damaged 1 | . . . 1 . . . . . . . . . . . . . . . . . . . . . Bothacking | -11 -10 -10 -9 -9 -8 -8 -7 -7 -7 -7 -6 -6 -6 -6 -6 -6 -5 -5 -5 -4 -4 -4 -3 -3 ------------ Run | Scr Mat Min Mat Min Mat Sto Fac Low Low Zio Pro Fac Gar Ext Cet Arc Fac Gar Fac Fac Was Fac Res Qua Used RIF Installer 2 | . . . . . . . . . . . . . 1 . . . . 1 . . . . . . Watcher Feeds 1 | . . . . . . . . . . . . . . . . . . 1 . . . . . . Robots Hacked 73 | . . . . . . . . . . . . . 1 3 . . 9 6 38 8 4 . . 4 Non-combat 13 | . . . . . . . . . . . . . . . . . 3 . 8 2 . . . . Combat 60 | . . . . . . . . . . . . . 1 3 . . 6 6 30 6 4 . . 4 Robot Hacks Applied 86 | . . . . . . . . . . . . . 1 3 . . 10 7 47 9 4 . . 5 parse_system 5 | . . . . . . . . . . . . . . . . . . 2 3 . . . . . find_chute 1 | . . . . . . . . . . . . . . . . . . . . 1 . . . . ignore_repairs 4 | . . . . . . . . . . . . . . . . . . . 4 . . . . . drop_inventory 4 | . . . . . . . . . . . . . . . . . 3 . 1 . . . . . purge_threat 4 | . . . . . . . . . . . . . . . . . . . 4 . . . . . map_route 1 | . . . . . . . . . . . . . . . . . . . . 1 . . . . redirect_shields 1 | . . . . . . . . . . . . . . . . . . . 1 . . . . . locate_prototypes 1 | . . . . . . . . . . . . . . . . . . . . . . . . 1 ignore_targets 4 | . . . . . . . . . . . . . . . . . . . . . 4 . . . find_garrison 4 | . . . . . . . . . . . . . . . . . 1 . 2 1 . . . . disrupt_area 3 | . . . . . . . . . . . . . . 1 . . . 1 . . . . . 1 spike_heat 2 | . . . . . . . . . . . . . . . . . 1 . . . . . . 1 overload_power 1 | . . . . . . . . . . . . . . . . . . . 1 . . . . . amplify_resonance 1 | . . . . . . . . . . . . . . . . . . . 1 . . . . . wipe_record 1 | . . . . . . . . . . . . . . . . . . . 1 . . . . . reboot_system 4 | . . . . . . . . . . . . . . 1 . . . . 2 1 . . . . overwrite_iff 28 | . . . . . . . . . . . . . . . . . 2 4 18 2 . . . 2 formatsys_low 3 | . . . . . . . . . . . . . . . . . . . 3 . . . . . formatsys_high 14 | . . . . . . . . . . . . . 1 1 . . 3 . 6 3 . . . . Relay Couplers Released 46 | . . . . . . . . . . . . . 12 . . . 2 19 7 . . . 2 4 Ejected 6 | . . . . . . . . . . . . . . . . . . . 2 . . . . 4 Machine Destruction 34 | . . . . . . . . . . . . . 12 . . . . 19 1 . . . 2 . Programmers 6 | . . . . . . . . . . . . . . . . . 2 . 4 . . . . . Attached 23 | . . . . . . . . . . . . . 1 1 . . 3 2 11 3 . . . 2 Robots Rewired 10 | . . . . . . . . . 4 . . . . 4 . . . . . 2 . . . . Allies Hacked 4 | . . . . . . . 1 . . . . . . . . . . 1 2 . . . . . Hacks Repelled . | . . . . . . . . . . . . . . . . . . . . . . . . . Allies | -11 -10 -10 -9 -9 -8 -8 -7 -7 -7 -7 -6 -6 -6 -6 -6 -6 -5 -5 -5 -4 -4 -4 -3 -3 -------- Run | Scr Mat Min Mat Min Mat Sto Fac Low Low Zio Pro Fac Gar Ext Cet Arc Fac Gar Fac Fac Was Fac Res Qua Total Allies 105 | . . . . 5 . 13 3 . 4 2 . . 1 16 7 . 7 5 31 7 . . . 4 Largest Group 11 | . . . . 3 2 10 3 . 4 6 6 2 1 11 9 8 8 5 6 2 1 . . 2 Highest-Rated Group 828 | . . . . 52 52 173 93 . 91 150 150 51 38 416 828 705 570 266 184 108 54 . . 84 Highest-Rated Ally 156 | . . . . 31 31 31 31 . 31 31 31 31 38 156 150 128 94 94 54 54 54 . . 47 Total Orders 154 | . . . . . 19 33 23 1 . . 6 30 1 3 . . 5 9 17 4 2 . . 1 STAY 63 | . . . . . 9 13 10 . . . 2 11 1 2 . . 2 5 5 1 1 . . 1 ROAM 5 | . . . . . 1 2 . . . . 1 1 . . . . . . . . . . . . FOLLOW 35 | . . . . . . 9 4 . . . . 7 . 1 . . 3 4 6 1 . . . . AID 2 | . . . . . . . . . . . . . . . . . . . 2 . . . . . EXPLORE 3 | . . . . . . 1 . . . . . . . . . . . . 2 . . . . . RETURN 46 | . . . . . 9 8 9 1 . . 3 11 . . . . . . 2 2 1 . . . Ally Attacks 964 | . . . . 15 10 176 49 . . . 48 3 10 116 96 25 139 75 166 24 4 . . 8 Total Damage 23743 | . . . . 190 127 2365 826 . . . 691 41 190 2688 3234 929 4913 1585 4889 814 110 . . 151 Kills 171 | . . . . 2 1 28 6 . . . 5 . 2 20 14 3 27 14 40 8 . . . 1 Allies Corrupted . | . . . . . . . . . . . . . . . . . . . . . . . . . Allies Melted . | . . . . . . . . . . . . . . . . . . . . . . . . . Intel | -11 -10 -10 -9 -9 -8 -8 -7 -7 -7 -7 -6 -6 -6 -6 -6 -6 -5 -5 -5 -4 -4 -4 -3 -3 ------- Run | Scr Mat Min Mat Min Mat Sto Fac Low Low Zio Pro Fac Gar Ext Cet Arc Fac Gar Fac Fac Was Fac Res Qua Robot Analysis Total 8 | . 4 . 1 . . . . . . . . . . 2 . . . . 1 . . . . . Derelict Logs Recovered 8 | . . 2 . 1 . . . 2 1 . 2 . . . . . . . . . . . . . Drone Launches 115 | . . . . . 13 10 51 1 . . 3 26 . . . . 2 . 5 3 1 . . . Drone Recoveries 105 | . . . . . 13 10 48 1 . . 2 24 . . . . 1 . 3 2 1 . . . Exploration | -11 -10 -10 -9 -9 -8 -8 -7 -7 -7 -7 -6 -6 -6 -6 -6 -6 -5 -5 -5 -4 -4 -4 -3 -3 ------------- Run | Scr Mat Min Mat Min Mat Sto Fac Low Low Zio Pro Fac Gar Ext Cet Arc Fac Gar Fac Fac Was Fac Res Qua Turns Passed 39499 | 91 1503 1254 2461 717 2012 2507 3459 1163 847 1677 1642 1572 2145 1982 405 1551 1345 2446 2689 787 210 399 1139 3496 Spaces Moved 19281 | 45 658 637 1111 366 811 995 1769 742 510 1096 1033 834 1042 924 178 217 649 1272 1183 333 100 542 542 1692 Core 795 | 5 . . . . . . . . . . . . . . . . . . . . 50 536 204 . Treads 11651 | 40 658 637 1068 302 301 995 811 . . . . 2 311 608 178 217 649 1272 1183 333 50 6 338 1692 Legs . | . . . . . . . . . . . . . . . . . . . . . . . . . Wheels 6835 | . . . 43 64 510 . 958 742 510 1096 1033 832 731 316 . . . . . . . . . . Hover . | . . . . . . . . . . . . . . . . . . . . . . . . . Flight . | . . . . . . . . . . . . . . . . . . . . . . . . . Fastest Speed 50 | 50 160 180 150 170 160 180 140 140 140 150 140 150 140 130 180 180 180 180 180 185 50 50 50 145 Average Speed 165 | 157 179 180 179 178 184 204 171 144 149 150 149 150 162 173 180 180 180 180 180 185 139 54 144 157 Slowest Speed 290 | 200 180 180 200 200 190 230 210 150 150 150 150 260 290 203 180 180 180 180 185 185 185 152 200 180 Overloaded Moves . | . . . . . . . . . . . . . . . . . . . . . . . . . Propulsion Burnouts . | . . . . . . . . . . . . . . . . . . . . . . . . . Robots Hopped . | . . . . . . . . . . . . . . . . . . . . . . . . . Cave-ins Triggered . | . . . . . . . . . . . . . . . . . . . . . . . . . Exploration Rate (%) 61 | 5 97 89 90 65 46 94 44 87 48 86 97 27 91 83 64 83 18 86 33 12 70 23 17 90 Regions Visited 24 Branch Regions 11 Pre-discovered Areas 5 | . . 2 . 1 . 1 . . . 1 . . . . . . . . . . . . . . Known Exits Taken 12 | . . . 1 . 1 1 1 1 1 1 1 1 . . . . 1 . . . . 1 1 . Unknown Exits Taken 8 | 1 1 1 . 1 . . . . . . . . . 1 1 1 . . 1 . . . . . Scrap Searched 15 | . . 1 . 2 . . . 3 4 2 3 . . . . . . . . . . . . . Spaces Dug 209 | . 2 . 8 13 5 21 2 17 1 . 55 18 1 9 1 . 2 . 15 1 . 3 . 35 Terrain Destroyed 701 | . 5 . 39 24 58 49 2 35 1 . 148 54 40 17 3 . 7 33 51 10 . 3 4 118 Melee 46 | . . . 1 . 5 2 2 . 1 . . 3 . 9 1 . 2 . . . . 3 . 17 Projectile 91 | . 5 . . . . . . . . . 5 22 3 2 2 . 5 1 20 2 . . 4 20 AOE 564 | . . . 38 24 53 47 . 35 . . 143 29 37 6 . . . 32 31 8 . . . 81 Terrain Rammed . | . . . . . . . . . . . . . . . . . . . . . . . . . Walls Destroyed . | . . . . . . . . . . . . . . . . . . . . . . . . . Machines Disabled . | . . . . . . . . . . . . . . . . . . . . . . . . . Actions | -11 -10 -10 -9 -9 -8 -8 -7 -7 -7 -7 -6 -6 -6 -6 -6 -6 -5 -5 -5 -4 -4 -4 -3 -3 --------- Run | Scr Mat Min Mat Min Mat Sto Fac Low Low Zio Pro Fac Gar Ext Cet Arc Fac Gar Fac Fac Was Fac Res Qua Total 24751 | 56 846 694 1378 395 1166 1289 2119 804 574 1132 1097 1030 1309 1151 233 1352 769 1380 1569 446 145 634 845 2338 Wait 2682 | . 76 4 81 2 167 102 184 2 13 26 16 66 54 29 12 1097 18 5 123 21 18 53 184 329 Move 19258 | 44 657 636 1110 365 810 994 1768 741 509 1095 1032 833 1041 923 177 216 648 1271 1182 333 99 541 541 1692 Hop . | . . . . . . . . . . . . . . . . . . . . . . . . . Pick Up 274 | 3 22 5 14 . 24 16 26 15 2 6 3 10 19 9 5 7 11 12 15 11 1 3 15 20 Fast Attach 145 | 6 5 1 6 1 11 9 6 4 4 . 5 3 7 6 4 . 2 3 5 . 2 11 29 15 Attach 85 | . 3 . 2 4 6 2 6 . 2 . 1 4 7 6 . . 5 2 10 7 2 5 5 6 Detach 16 | . . . . . . 2 . . 1 . . 1 . . 1 . 1 . 1 . . 5 4 . Swap 381 | . 8 3 26 2 22 24 27 14 2 . 13 30 25 20 7 1 22 14 52 20 4 . 5 40 Drop 312 | . 7 9 23 . 23 31 37 13 6 5 6 13 15 6 11 8 13 12 7 2 1 4 25 35 Fire 1198 | 3 68 34 114 21 95 97 60 15 . . 21 54 84 43 14 5 40 45 160 48 11 . 30 136 Melee 241 | . . . 1 . 5 7 2 . 10 . . 16 17 55 2 18 9 3 9 2 7 6 7 65 Ram 5 | . . . . . 3 . 2 . . . . . . . . . . . . . . . . . Kick . | . . . . . . . . . . . . . . . . . . . . . . . . . Crush 6 | . . 2 1 . . . 1 . . . . . . . . . . 1 1 . . . . . Escape Stasis 67 | . . . . . . . . . . . . . 40 4 . . . 12 4 1 . 6 . . Rewire 76 | . . . . . . . . . 25 . . . . 50 . . . . . 1 . . . . Trap 5 | . . . . . . 5 . . . . . . . . . . . . . . . . . . Miscellaneous . | . . . . . . . . . . . . . . . . . . . . . . . . . Route ------- -11/Scrapyard -10/Materials (discovered 4 exits: *Mat x2 / *Min x2) -10/Mines (discovered 2 exits: *Mat x2) -9/Materials (discovered 4 exits: *Mat x3 / *Min) -9/Mines (discovered 3 exits: *Mat x2 / *Zio) -8/Materials (discovered 3 exits: *Fac / *Sto x2) -8/Storage -7/Factory (discovered 4 exits: *Fac x2 / *Low x2) -7/Lower Caves -7/Lower Caves -7/Zion -6/Proximity Caves -6/Factory (discovered 2 exits: Ext / Gar) -6/Garrison (discovered 3 exits: *Ext x3) -6/Extension (discovered 2 exits: *Fac / *Cet) -6/Cetus (discovered 2 exits: *Fac / [*Arc]) -6/Archives (discovered 3 exits: *Fac / [*Hub x2]) -5/Factory (discovered 2 exits: *Upp / Gar) -5/Garrison (discovered 3 exits: *Fac x3) -5/Factory -4/Factory (discovered 2 exits: *Upp x2) -4/Waste -4/Factory (discovered 3 exits: *Res / Upp x2) -3/Research -3/Quarantine (discovered 1 exit: *Res) History --------- Turn | Location | Event 14 | -11/Scrapyard | Discovered new exit (range 16) 92 | -11/Scrapyard | Entered Materials 298 | -10/Materials | Discovered new exit (range 5) 303 | -10/Materials | Build established: Mutant 763 | -10/Materials | Build established: Hauler-Mutant 859 | -10/Materials | Discovered new exit (range 14) 946 | -10/Materials | Repaired Lgt. Treads 974 | -10/Materials | Repaired Lgt. Treads 1172 | -10/Materials | Discovered new exit (range 13) 1462 | -10/Materials | Discovered new exit (range 14) 1595 | -10/Materials | Entered Mines 1641 | -10/Mines | Met a Derelict who couldn't figure out how to use a Trap Extractor 1725 | -10/Mines | Discovered new exit (range 9) 1953 | -10/Mines | Found a damaged Exp. Sensor Array with a note attached 1957 | -10/Mines | Found Prototype Device 2106 | -10/Mines | Found the Drone Emporium 2115 | -10/Mines | Found Prototype Device 2351 | -10/Mines | Received a Rocket Launcher from a helpful Derelict 2658 | -10/Mines | Discovered new exit (range 7) 2849 | -10/Mines | Entered Materials 2849 | -9/Materials | Evolved 2 slots: Propulsion x1, Utility x1 2867 | -9/Materials | Identified Sensor Drone Bay 2868 | -9/Materials | Identified Exp. Sensor Array 3050 | -9/Materials | Repaired Lgt. Treads 3167 | -9/Materials | Discovered new exit (range 4) 3624 | -9/Materials | Repaired Lgt. Treads 3687 | -9/Materials | Discovered new exit (range 6) 3731 | -9/Materials | Identified exit to Mines 3821 | -9/Materials | Discovered new exit (range 5) 4172 | -9/Materials | Discovered new exit (range 16) 5249 | -9/Materials | First assault squad dispatched 5310 | -9/Materials | Entered Mines 5343 | -9/Mines | Assembled infested the area 5456 | -9/Mines | Learned location of Storage (-8) 5504 | -9/Mines | Assisted by bots powering up and referring to "LRC-V3" 5526 | -9/Mines | Core integrity fell below 50% 5570 | -9/Mines | Lost 4 parts (2n2w) 5678 | -9/Mines | Discovered new exit (range 10) 5883 | -9/Mines | A Derelict revealed a hidden shortcut to a safe place 5999 | -9/Mines | Discovered new exit (range 14) 6027 | -9/Mines | Entered Materials 6027 | -8/Materials | Accompanied by 2 allies 6027 | -8/Materials | Evolved 2 slots: Utility x2 6032 | -8/Materials | Led the pair of lost Derelicts to an unsafe place 6057 | -8/Materials | Discovered new exit (range 15) 6119 | -8/Materials | Identified exit to Storage 7213 | -8/Materials | Lost 5 parts (1p1n1u2w) 7547 | -8/Materials | Discovered new exit (range 12) 7843 | -8/Materials | Central database locked down 7868 | -8/Materials | Discovered exit to Storage (range 6) 8039 | -8/Materials | Entered Storage 8492 | -8/Storage | Assisted by bots powering up and referring to "LRC-V3" 8784 | -8/Storage | Build established: Commander-Mutant 8837 | -8/Storage | Found Prototype Processor 8837 | -8/Storage | Identified Exp. Targeting Computer 8842 | -8/Storage | Found Exp. Targeting Computer 8846 | -8/Storage | Found Exp. Targeting Computer 8850 | -8/Storage | Found Exp. Targeting Computer 9124 | -8/Storage | Build established: Hauler-Mutant 9225 | -8/Storage | Discovered new exit (range 8) 10100 | -8/Storage | Allied Derelicts emerged from ambush trap array 10363 | -8/Storage | Learned location of Armory (-3) 10537 | -8/Storage | Identified exit to Factory 10546 | -8/Storage | Entered Factory 10546 | -7/Factory | Accompanied by 3 allies 10546 | -7/Factory | Evolved 2 slots: Utility x2 11640 | -7/Factory | Identified exit to Lower Caves 12109 | -7/Factory | Garrison activated, responded to threat 12709 | -7/Factory | Discovered new exit (range 12) 12726 | -7/Factory | Identified exit to Factory 13477 | -7/Factory | Discovered exit to Factory (range 13) 14005 | -7/Factory | Entered Lower Caves 14005 | -7/Lower Caves | Accompanied by 1 ally 14309 | -7/Lower Caves | Learned 4 Factory zone layouts 15030 | -7/Lower Caves | Discovered new exit (range 14) 15048 | -7/Lower Caves | Identified exit to Lower Caves 15168 | -7/Lower Caves | Entered another Lower Caves area 15168 | -7/Lower Caves | Accompanied by 1 ally 15273 | -7/Lower Caves | Learned Factory terminal intel 15552 | -7/Lower Caves | Discovered new exit (range 15) 15592 | -7/Lower Caves | Identified exit to Zion 15846 | -7/Lower Caves | Attacked by a delusional Derelict stockpiling Unaware 16015 | -7/Lower Caves | Entered Zion 16015 | -7/Zion | Accompanied by 5 allies 16048 | -7/Zion | Received a hallucinogenic algorithm 16101 | -7/Zion | Discovered new exit (range 15) 16182 | -7/Zion | System corruption cleaned by Quarantine Array 16257 | -7/Zion | Given A8's code to call for help 16507 | -7/Zion | Gained Derelict followers 16658 | -7/Zion | Found CR-A16's Pointy Stick 17330 | -7/Zion | Found Relay Coupler [Programmer] 17332 | -7/Zion | Found Relay Coupler [Programmer] 17338 | -7/Zion | Found Relay Coupler [Programmer] 17340 | -7/Zion | Found Relay Coupler [Programmer] 17343 | -7/Zion | Found Relay Coupler [Programmer] 17663 | -7/Zion | Identified exit to Proximity Caves 17692 | -7/Zion | Entered Proximity Caves 17692 | -6/Proximity Caves | Accompanied by 7 allies 17974 | -6/Proximity Caves | Spotted B-75 Beast 17992 | -6/Proximity Caves | Allies destroyed B-75 Beast 18088 | -6/Proximity Caves | Found Alien Artifact 18088 | -6/Proximity Caves | Identified Core Expander 18088 | -6/Proximity Caves | Installed Core Expander, added new Power slot 18115 | -6/Proximity Caves | Learned Factory terminal intel 18586 | -6/Proximity Caves | Learned Factory terminal intel 19298 | -6/Proximity Caves | Discovered exit to Factory (range 8) 19334 | -6/Proximity Caves | Entered Factory 19334 | -6/Factory | Accompanied by 3 allies 19334 | -6/Factory | Evolved 2 slots: Utility x2 19336 | -6/Factory | Loaded intel: 21 terminal locations 19359 | -6/Factory | Identified exit to Garrison 19368 | -6/Factory | Discovered new exit (range 13) 20249 | -6/Factory | Garrison activated, responded to threat 20906 | -6/Factory | Entered Garrison 21094 | -6/Garrison | Triggered checkpoint 21096 | -6/Garrison | Triggered checkpoint 21154 | -6/Garrison | Lost 4 parts (2p1n1w) 21168 | -6/Garrison | Destroyed 10 combat bots 21221 | -6/Garrison | Discovered new exit (range 13) 21326 | -6/Garrison | Discovered new exit (range 8) 21344 | -6/Garrison | Installed Relay Interface Framework 21382 | -6/Garrison | Triggered checkpoint 21444 | -6/Garrison | Garrison Relay disabled 21573 | -6/Garrison | Triggered checkpoint 21649 | -6/Garrison | Garrison Relay disabled 21764 | -6/Garrison | Build established: Bothacker-Mutant 21772 | -6/Garrison | Triggered checkpoint 21924 | -6/Garrison | Garrison Relay disabled 22014 | -6/Garrison | Triggered checkpoint 22334 | -6/Garrison | Discovered new exit (range 12) 22454 | -6/Garrison | Triggered checkpoint 22470 | -6/Garrison | Garrison Relay disabled 22848 | -6/Garrison | Triggered checkpoint 23051 | -6/Garrison | Entered Extension 23689 | -6/Extension | Spotted B-75 Beast 23706 | -6/Extension | Spotted B-75 Beast 23709 | -6/Extension | Destroyed B-75 Beast 23765 | -6/Extension | Core integrity fell below 50% 23773 | -6/Extension | Revealed the true nature of CR-A16's Pointy Stick 23776 | -6/Extension | Destroyed B-75 Beast 23844 | -6/Extension | Lost 7 parts (1p4n2w) 23972 | -6/Extension | Rescued A7 24071 | -6/Extension | Rescued a captive Derelict 24071 | -6/Extension | Rescued a captive Derelict 24259 | -6/Extension | Rescued a captive Derelict 24260 | -6/Extension | Rescued a captive Derelict 24282 | -6/Extension | Rescued a captive Derelict 24291 | -6/Extension | Rescued a captive Derelict 24659 | -6/Extension | Rescued a captive Derelict 24665 | -6/Extension | Rescued a captive Derelict 24813 | -6/Extension | Rescued a captive Derelict 24824 | -6/Extension | Rescued a captive Derelict 24856 | -6/Extension | Rescued a captive Derelict 24858 | -6/Extension | Rescued a captive Derelict 24929 | -6/Extension | Rescued a captive Derelict 24935 | -6/Extension | Rescued a captive Derelict 24975 | -6/Extension | Discovered new exit (range 10) 24977 | -6/Extension | Discovered new exit (range 6) 25011 | -6/Extension | Disrupted transfer network 25033 | -6/Extension | Entered Cetus 25033 | -6/Cetus | Accompanied by 7 allies (A7) 25038 | -6/Cetus | Acquired a Cetus Manufacturing Module code from A7 25058 | -6/Cetus | Spotted Cetus Guard 25058 | -6/Cetus | Spotted Cetus Guard 25061 | -6/Cetus | Spotted Cetus Guard 25065 | -6/Cetus | Spotted Cetus Guard 25072 | -6/Cetus | Allies destroyed Cetus Guard 25076 | -6/Cetus | Allies destroyed Cetus Guard 25080 | -6/Cetus | Destroyed Cetus Guard 25088 | -6/Cetus | Allies destroyed Cetus Guard 25185 | -6/Cetus | Started Cetus Manufacturing Module 25195 | -6/Cetus | Enhanced Grunt warped into view, answering call for help 25196 | -6/Cetus | Enhanced Grunt warped into view, answering call for help 25210 | -6/Cetus | Manufactured an Enhanced Grunt 25228 | -6/Cetus | Discovered new exit (range 16) 25235 | -6/Cetus | Manufactured an Enhanced Grunt 25260 | -6/Cetus | Manufactured an Enhanced Grunt 25285 | -6/Cetus | Manufactured an Enhanced Grunt 25310 | -6/Cetus | Manufactured an Enhanced Grunt 25323 | -6/Cetus | Spotted Cetus Guard 25323 | -6/Cetus | Spotted Cetus Guard 25325 | -6/Cetus | Spotted Cetus Guard 25327 | -6/Cetus | Spotted Cetus Guard 25331 | -6/Cetus | Allies destroyed Cetus Guard 25340 | -6/Cetus | Discovered new exit (range 16) 25344 | -6/Cetus | Destroyed Cetus Guard 25346 | -6/Cetus | Allies destroyed Cetus Guard 25347 | -6/Cetus | Allies destroyed Cetus Guard 25355 | -6/Cetus | Met Revision 17 25438 | -6/Cetus | Entered Archives 25438 | -6/Archives | Accompanied by 8 allies (A7) 25600 | -6/Archives | Discovered new exit (range 13) 25648 | -6/Archives | Discovered new exit (range 14) 25811 | -6/Archives | Discovered new exit (range 14) 26989 | -6/Archives | Entered Factory 26989 | -5/Factory | Accompanied by 5 allies 26989 | -5/Factory | Evolved 2 slots: Utility x2 26990 | -5/Factory | Identified exit to Upper Caves 26991 | -5/Factory | Loaded intel: 20 terminal locations 27909 | -5/Factory | Fabricated Hcp. Storage Unit? 28191 | -5/Factory | Garrison activated, responded to threat 28259 | -5/Factory | Identified exit to Garrison 28334 | -5/Factory | Entered Garrison 28334 | -5/Garrison | Accompanied by 4 allies 28352 | -5/Garrison | Triggered checkpoint 28355 | -5/Garrison | Sage 6b assimilated hostile G-50 Soldier 28466 | -5/Garrison | Triggered checkpoint 28508 | -5/Garrison | Garrison Relay disabled 28584 | -5/Garrison | Triggered checkpoint 28604 | -5/Garrison | Triggered checkpoint 28608 | -5/Garrison | Triggered checkpoint 28628 | -5/Garrison | Triggered checkpoint 28751 | -5/Garrison | Discovered new exit (range 12) 28933 | -5/Garrison | Discovered new exit (range 9) 29066 | -5/Garrison | Discovered new exit (range 8) 29087 | -5/Garrison | Expanded RIF knowledge: Patrol Navigation 29156 | -5/Garrison | Triggered checkpoint 29187 | -5/Garrison | Garrison Relay disabled 29265 | -5/Garrison | Found Prototype Device 29265 | -5/Garrison | Identified Exp. Thermal Shield 29774 | -5/Garrison | Triggered checkpoint 29833 | -5/Garrison | Garrison Relay disabled 29992 | -5/Garrison | Triggered checkpoint 30022 | -5/Garrison | Garrison Relay disabled 30780 | -5/Garrison | Entered Factory 30780 | -5/Factory | Accompanied by 1 ally 30781 | -5/Factory | Loaded intel: 20 terminal locations 31522 | -5/Factory | Sage 6c assimilated hostile Y-64 Sentinel 31808 | -5/Factory | Garrison activated, responded to threat 31893 | -5/Factory | Identified exit to Garrison 32280 | -5/Factory | First assault squad dispatched 32416 | -5/Factory | Discovered new exit (range 12) 32583 | -5/Factory | Fabricated Hcp. Storage Unit (x1) 32634 | -5/Factory | Fabricated Hcp. Storage Unit (x1) 32946 | -5/Factory | Fabricated H-55 Commando? 33070 | -5/Factory | Found Exp. Signal Interpreter 33164 | -5/Factory | Local fabrication network quarantined 33168 | -5/Factory | Identified exit to Garrison 33249 | -5/Factory | Garrison activated, responded to threat 33337 | -5/Factory | High security lockdown imminent 33417 | -5/Factory | High security lockdown engaged 33469 | -5/Factory | Entered another Factory area 33469 | -4/Factory | Evolved 2 slots: Utility x2 33546 | -4/Factory | Discovered new exit (range 30) 33828 | -4/Factory | Discovered new exit (range 11) 33884 | -4/Factory | Identified exit to Upper Caves 34219 | -4/Factory | First assault squad dispatched 34256 | -4/Factory | Sucked down chute 34256 | -4/Factory | Entered Waste 34265 | -4/Waste | 1 allies followed down the chute 34271 | -4/Waste | EMP discharged 34271 | -4/Waste | System corruption reached 10% 34293 | -4/Waste | Spotted C-40 Crusher 34305 | -4/Waste | Spotted C-40 Crusher 34310 | -4/Waste | Spotted C-40 Crusher 34321 | -4/Waste | Spotted C-40 Crusher 34321 | -4/Waste | Spotted C-40 Crusher 34362 | -4/Waste | Spotted C-40 Crusher 34371 | -4/Waste | EMP discharged 34381 | -4/Waste | Crushed by Compactor (1 part destroyed, 1 dropped) 34384 | -4/Waste | Crushed by Compactor (0 parts destroyed, 2 dropped) 34385 | -4/Waste | Crushed by Compactor (0 parts destroyed, 2 dropped) 34394 | -4/Waste | Crushed by Compactor (1 part destroyed) 34396 | -4/Waste | Crushed by Compactor (0 parts destroyed, 1 dropped) 34399 | -4/Waste | Crushed by Compactor (1 part destroyed, 1 dropped) 34399 | -4/Waste | Destroyed C-40 Crusher 34402 | -4/Waste | Released all parts (10) 34429 | -4/Waste | Discovered new exit (range 16) 34430 | -4/Waste | Lost 4 parts (2p1u1w) 34466 | -4/Waste | Entered Factory 34819 | -4/Factory | Discovered new exit (range 21) 34845 | -4/Factory | Found Exp. Signal Interpreter 34864 | -4/Factory | Identified exit to Research 34865 | -4/Factory | Entered Research 34865 | -3/Research | Evolved 2 slots: Propulsion x1, Utility x1 35065 | -3/Research | Revision forces began assault on 0b10 35109 | -3/Research | Met up with Revision 17++ 35474 | -3/Research | Build established: Hacker-Assassin 35565 | -3/Research | Research terminal network offline 35641 | -3/Research | Discovered new exit (range 20) 35756 | -3/Research | Found Prototype Launcher 35756 | -3/Research | Identified Mni. Smartbomb Launcher 35773 | -3/Research | Spotted Striker 35908 | -3/Research | Found Launcher Loader 35923 | -3/Research | Found Mni. Smartbomb Launcher 35926 | -3/Research | Found Mni. Smartbomb Launcher 35994 | -3/Research | Identified exit to Quarantine 36004 | -3/Research | Entered Quarantine 36040 | -3/Quarantine | Found Alien Slashing Weapon 36129 | -3/Quarantine | Identified exit to Research 36269 | -3/Quarantine | Found Prototype Protection 36269 | -3/Quarantine | Identified Centrium Heavy Armor Plating 37851 | -3/Quarantine | Found Quantum Capacitor 37978 | -3/Quarantine | System corruption reached 10% 38208 | -3/Quarantine | Build established: Hacker-Mutant 38254 | -3/Quarantine | First assault squad dispatched 38395 | -3/Quarantine | Found Matter Drive 38447 | -3/Quarantine | Found Subatomic Replicator 38758 | -3/Quarantine | Spotted Alpha 7 38788 | -3/Quarantine | Destroyed Alpha 7 38842 | -3/Quarantine | Found Prototype Processor 38842 | -3/Quarantine | Identified Exp. Target Analyzer 38895 | -3/Quarantine | Found Sigix Terminator 39337 | -3/Quarantine | Spotted Fortress 39500 | -3/Quarantine | Self-destructed Last Messages --------------- 39396_ K-01 Serf suffers critical hit. 39396_ K-01 Serf destroyed. 39399_ System corrupted: IFF burst signal emitted. 39399_ Acquired 12 matter. 39439_ System corrupted: Energy discharge (-39). 39444_ Lgt. Particle Reactor destroyed. 39448_ C-30 ARC bursts open, deploying its payload. 39448_ P-80 Master unfolds itself. 39451_ Critical hit. 39452_ Centrium Heavy Armor Plating destroyed. 39455_ Adv. Remote Datajack destroyed. 39462_ TNF>HN|8E9YU/YOL>U